[Event "31st MPL National U18 Chess-ch 2022"]
[Site "Pollachi"]
[Date "2022.04.21"]
[Round "7.1"]
[White "Bharath Subramaniyam H"]
[Black "Srihari L R"]
[Result "0-1"]
[ECO "A06"]
[WhiteElo "2508"]
[BlackElo "2400"]
[Annotator "TA"]
[PlyCount "106"]
[EventDate "2022.04.18"]
[EventCountry "IND"]
[SourceTitle "playchess.com"]
[Source "ChessBase"]
[SourceQuality "1"]
[TimeControl "5400+30"]

{[%evp 9,106,2,18,27,27,25,31,-12,-14,-28,0,0,6,0,0,0,2,-31,-14,-24,-12,-24,0,0,0,-20,-8,-25,39,0,2,8,27,0,0,-18,-25,-21,-13,-25,-6,-24,-24,-26,-28,-29,-31,-28,243,0,0,0,0,0,0,0,0,-200,-199,-987,-980,-955,-941,-843,-604,-604,-604,-604,-604,-604,-604,-604,-604,-604,-604,-570,-570,-963,-1309,-3831,-4120,-2791,-2601,-1470,-1511,-1143,-1117,-958,-899,-29963,-29963,-29975,-29976,-29983,-29979,-29979,-29979,-29987,-29985]} 1. b3 {[%emt 0:00:27]} d5 {[%emt 0:01:07]} 2. Bb2 {[%emt 0:00:07]} c5 {[%emt 0:00:32]} 3. e3 {[%emt 0:00:05]} a6 {[%emt 0:00:40]} 4. Nf3 {[%emt 0:03:22]} Nc6 {[%emt 0:00:20]} 5. g3 {[%emt 0:15:13]} d4 {[%emt 0:07:01]} 6. Bg2 {[%emt 0:02:55] A06: Réti Opening: 1 Nf3 d5.} g6 {[%emt 0:05:17]} 7. O-O {[%emt 0:08:41][%cal Ob3b4]} Bg7 {[%emt 0:00:17] [#]} 8. c4 $146 {[%emt 0:02:00] White is slightly better.} ({Predecessor:} 8. d3 Nf6 9. e4 O-O 10. Nbd2 b5 11. a4 Bb7 12. e5 Nd5 13. e6 f5 14. h4 {0-1 (46) Korovin,M (2311)-Zakhartsov,V (2486) Moscow 2018}) 8... Nh6 {[%emt 0:10:31]} 9. exd4 {[%emt 0:10:27]} cxd4 {[%emt 0:17:51]} (9... Bg4 {is more complex.} 10. h3 Bxf3 11. Bxf3 Qd7) 10. d3 {[%emt 0:02:52]} O-O {[%emt 0:05:27]} 11. Nbd2 {[%emt 0:02:50]} a5 {[%emt 0:12:08]} 12. a3 {[%emt 0:03:43]} e5 {[%emt 0:01:41]} 13. Rc1 {[%emt 0:06:54]} f6 {[%emt 0:03:00]} 14. c5 {[%emt 0:07:15]} Be6 {[%emt 0:00:31]} 15. Nc4 {[%emt 0:00:35]} Qc7 {[%emt 0:01:06]} 16. Re1 {[%emt 0:01:56][%cal Ob3b4]} Nf7 {[%emt 0:02:56]} 17. Nfd2 {[%emt 0:02:03]} f5 {[%emt 0:01:20]} 18. Rb1 {[%emt 0:11:22]} (18. Nb6 $5 {[%cal Rb6a8]}) 18... Na7 {[%emt 0:07:34]} ({Black should try} 18... Qe7 $11) 19. b4 {[%emt 0:06:21]} axb4 {[%emt 0:00:11]} 20. axb4 {[%emt 0:00:00]} Nb5 {[%emt 0:00:36]} 21. Ra1 {[%emt 0:06:50]} Nc3 {[%emt 0:07:46]} 22. Qc2 {[%emt 0:00:15]} Rxa1 {[%emt 0:02:06]} 23. Bxa1 {[%emt 0:03:35]} Rd8 {[%emt 0:01:44]} (23... e4 $5) 24. Nb6 {[%emt 0:01:27]} (24. Bxc3 dxc3 25. Qxc3 e4 $17) 24... e4 $1 {[%emt 0:01:07]} 25. dxe4 {[%emt 0:00:52] [#]} d3 $1 {[%emt 0:00:13]} 26. Qxc3 {[%emt 0:00:06]} Bxc3 {[%emt 0:00:12]} 27. Bxc3 {[%emt 0:01:47] exf5 is the strong threat.} Ng5 {[%emt 0:06:15]} 28. exf5 {[%emt 0:00:00]} ({Don't blunder} 28. Bf6 $2 Nxe4 29. Bxd8 Qxd8 30. Bxe4 fxe4 31. Rxe4 Qf6 $19) 28... Bxf5 {[%emt 0:00:01][%mdl 8192] [#]} (28... gxf5 $11 29. Bf6 Ne4 30. Bxd8 (30. Nxe4 $2 fxe4 31. Rd1 Bg4 $19) 30... Qxd8 31. Bxe4 (31. Nxe4 $2 fxe4 32. Bxe4 d2 $19) 31... fxe4 32. Rxe4 Qf6) 29. Bf6 $2 {[%emt 0:00:24] A strong pair of Bishops.} (29. Nd5 $1 $18 {[%cal Rd5c7]} Qf7 30. Re7 (30. Ne7+ $2 Kf8 $19) 30... Qxd5 31. Bxd5+ Rxd5 32. Rxb7) 29... Ne6 $11 {[%emt 0:02:04]} 30. Bxd8 {[%emt 0:00:24]} Qxd8 {[%emt 0:02:18]} 31. Bxb7 {[%emt 0:00:25] aiming for Bd5.} Qd4 {[%emt 0:00:04]} 32. Nbc4 {[%emt 0:00:36]} Ng5 {[%emt 0:00:31] Hoping for ...Nh3+.} 33. Re3 $2 {[%emt 0:00:38] Black keeps a firm grip on the game.} ({But not} 33. Re8+ $2 Kg7 34. Bg2 Qa1+ 35. Bf1 Bh3 36. Re7+ Kf8 $19) (33. Bg2 $1 $11 {and White is okay.} Nh3+ 34. Bxh3 Bxh3 35. Re8+ Kg7 36. Re1) 33... Be6 $19 {[%emt 0:01:42][%mdl 1024] Black has strong compensation.} 34. c6 $2 {[%emt 0:00:28]} (34. Rxe6 Nxe6 35. Be4) 34... Qa1+ {[%emt 0:00:18]} 35. Nf1 {[%emt 0:00:00] [#]} Bd5 $1 {[%emt 0:00:06][%cal Rg5h3]} (35... Bxc4 $2 36. c7 d2 37. c8=Q+ $18) 36. g4 {[%emt 0:01:02]} Nf3+ {[%emt 0:00:20]} (36... Bxc4 $2 37. c7 d2 38. c8=Q+ $18) 37. Rxf3 {[%emt 0:00:06]} Bxf3 {[%emt 0:00:01]} 38. Ncd2 {[%emt 0:00:17]} Bd5 {[%emt 0:00:05]} 39. b5 {[%emt 0:00:21]} Qa5 {[%emt 0:00:11]} 40. Ba6 {[%emt 0:01:00] [#]} Bxc6 $1 {[%emt 0:00:40][%mdl 512]} 41. Nc4 {[%emt 0:00:10]} (41. bxc6 Qxa6) 41... Qa2 {[%emt 0:00:16]} 42. bxc6 {[%emt 0:00:14]} Qxa6 {[%emt 0:00:02]} 43. Nb2 {[%emt 0:00:52]} Qxc6 {[%emt 0:00:30]} 44. Nxd3 {[%emt 0:00:23]} Qe4 {[%emt 0:00:06][%csl LRd3,LRg4]} 45. Nc5 {[%emt 0:00:29]} Qxg4+ {[%emt 0:00:04]} 46. Ng3 {[%emt 0:00:05]} h5 {[%emt 0:00:13]} 47. Nce4 {[%emt 0:00:24]} Qf4 {[%emt 0:00:06]} 48. h4 {[%emt 0:01:31]} Qxh4 {[%emt 0:00:11] ( -> ...Qf4)} 49. Nd2 {[%emt 0:00:30]} Qg4 {[%emt 0:00:18] Black mates.} 50. Kh1 {[%emt 0:00:35]} Qd1+ {[%emt 0:01:35]} 51. Ngf1 {[%emt 0:00:06]} g5 {[%emt 0:00:07][%cal Bg6g5,Bg5g4][%mdl 32]} 52. Kg2 {[%emt 0:00:58]} g4 {[%emt 0:00:35]} 53. Nc4 {[%emt 0:00:13]} Qd5+ {[%emt 0:00:02] Weighted Error Value: White=0.61/Black=0.18 (very precise)} 0-1

[Event "31st MPL National U18 Chess-ch 2022"]
[Site "Pollachi"]
[Date "2022.04.21"]
[Round "7.2"]
[White "Avinash Ramesh"]
[Black "Soham Kamotra"]
[Result "0-1"]
[WhiteElo "2402"]
[BlackElo "2229"]
[Annotator "TA"]
[PlyCount "19"]
[EventDate "2022.04.18"]
[EventCountry "IND"]
[SourceTitle "playchess.com"]
[Source "ChessBase"]
[SourceQuality "1"]
[TimeControl "5400+30"]

{[%evp 9,19,-14,-7,-20,6,0,0,-75,-66,-1274,219,-112]} 1. d4 {[%emt 0:00:54]} Nf6 {[%emt 0:00:09][%cal Bg8f6,Bf6h5,Bh5g3][%mdl 32]} 2. c4 {[%emt 0:00:04]} e6 {[%emt 0:00:07]} 3. Bf4 {[%emt 0:00:04]} b6 {[%emt 0:01:31]} 4. a3 {[%emt 0:00:21] [#]} Nh5 $146 {[%emt 0:05:08]} ({Predecessor:} 4... Bb7 5. Nc3 d6 6. Nf3 Nbd7 7. Qc2 g6 8. e4 Bg7 9. Be2 O-O 10. O-O Qe7 11. Be3 {½-½ (60) Kavutskiy,K (2395)-Nagy,G (2518) San Jose 2022}) 5. Bg3 {[%emt 0:03:20]} Nxg3 {[%emt 0:05:29]} 6. hxg3 {[%emt 0:00:08] A50: Queen's Fianchetto Defence (1 d4 Nf6 2 c4 b6).} c5 {[%emt 0:00:05]} 7. d5 {[%emt 0:03:35]} g6 {[%emt 0:01:01]} 8. dxe6 {[%emt 0:00:47]} (8. Nc3 $11 {keeps the balance.}) 8... dxe6 $17 {[%emt 0:00:43]} 9. Qd5 $2 {[%emt 1:25:47][%mdl 8192] [#]} Qd7 $4 {[%mdl 8192]} 10. Qxd7+ $2 {[%emt 0:00:00] Weighted Error Value: White=1.34/Black=1.23} (10. Qxa8 $18 Nc6 11. Nc3) 0-1

[Event "31st MPL National U18 Chess-ch 2022"]
[Site "Pollachi"]
[Date "2022.04.21"]
[Round "7.3"]
[White "Ayush Sharma"]
[Black "Krishnan Ritvik"]
[Result "0-1"]
[ECO "B29"]
[WhiteElo "2302"]
[BlackElo "1761"]
[Annotator "TA"]
[PlyCount "120"]
[EventDate "2022.04.18"]
[EventCountry "IND"]
[SourceTitle "playchess.com"]
[Source "ChessBase"]
[SourceQuality "1"]
[TimeControl "5400+30"]

{[%evp 9,119,-31,-32,-45,-24,-57,-47,-50,-60,-70,0,0,10,0,0,-27,14,18,27,20,43,37,46,-49,10,20,48,37,72,73,68,0,27,-18,17,7,6,0,0,0,0,0,0,-23,0,0,0,-60,-66,-68,-67,-64,-10,-6,0,0,0,-110,-114,-99,-109,-650,-649,-611,-647,-643,-630,-633,-600,-566,-507,-1170,-1151,-1350,-1121,-1076,-1048,-947,-621,-607,-581,-29973,-29974,-29974,-29974,-29977,-29978,-29978,-29979,-29979,-29980,-29980,-29981,-29980,-29981,-29983,-29982,-29984,-29985,-29986,-29986,-29987,-29988,-29988,-29989,-29996,-29997,-29997,-29998,-29998,-29999,-29999]} 1. e4 {[%emt 0:00:01]} c5 {[%emt 0:00:06]} 2. Nf3 {[%emt 0:00:08]} Nf6 {[%emt 0:00:01]} 3. Nc3 {[%emt 0:01:33]} d5 {[%emt 0:00:03]} 4. e5 {[%emt 0:02:54]} Nfd7 {[%emt 0:00:03]} 5. e6 {[%emt 0:11:55]} fxe6 {[%emt 0:00:04]} 6. d4 {[%emt 0:00:00] B29: Sicilian: 2 Nf3 Nf6 (Nimzowitsch Variation).} g6 {[%emt 0:00:08]} 7. Ng5 {[%emt 0:10:21] Black must now prevent Bb5.} Nf6 $1 {[%emt 0:02:02]} 8. Bb5+ {[%emt 0:01:52] Black is slightly better.} Nc6 {[%emt 0:00:28]} 9. dxc5 {[%emt 0:00:23]} d4 {[%emt 0:07:32]} (9... e5 $1 $15) 10. Bxc6+ $11 {[%emt 0:03:14]} bxc6 {[%emt 0:00:02]} 11. Ne2 $1 {[%emt 0:03:46] Pair of Knights!} e5 {[%emt 0:02:43]} 12. f4 {[%emt 0:03:53]} Qa5+ {[%emt 0:15:03]} 13. Qd2 $1 {[%emt 0:00:55]} Qxc5 {[%emt 0:01:36] Strongly threatening ...Ng4.} 14. fxe5 {[%emt 0:05:45]} Qxe5 {[%emt 0:00:47] Hoping for ...Ba6.} 15. Qxd4 {[%emt 0:01:20]} Qd5 {[%emt 0:00:52] [#]} 16. Bf4 $146 {[%emt 0:18:42]} (16. O-O $14) ({Predecessor:} 16. O-O e5 17. Qxd5 Nxd5 18. Ng3 Bc5+ 19. Kh1 Ba6 20. Re1 O-O 21. N5e4 Bf2 22. Nxf2 Rxf2 23. Rxe5 Rxc2 {½-½ (34) Johansen,S-Cross,A IECG email 1999}) 16... Bg4 {[%emt 0:07:26]} ({Black should try} 16... Bh6 $15) 17. Qxd5 {[%emt 0:03:20]} cxd5 {[%emt 0:00:45]} 18. Nd4 {[%emt 0:01:22]} Rc8 {[%emt 0:12:09] [#]} 19. h3 $1 {[%emt 0:05:43]} Bf5 {[%emt 0:02:01]} 20. g4 {[%emt 0:03:00]} ({But not} 20. Nxf5 gxf5 21. O-O-O Rg8 $11) (20. O-O-O $14) 20... Be4 {[%emt 0:02:55]} 21. O-O {[%emt 0:00:02]} h6 {[%emt 0:10:14]} (21... h5 $5 {[%cal Rh5g4]}) 22. Nxe4 {[%emt 0:01:32]} Nxe4 {[%emt 0:00:02]} 23. c3 {[%emt 0:00:00]} Kd7 {[%emt 0:02:00]} 24. Be5 {[%emt 0:01:40]} Rh7 {[%emt 0:00:01]} 25. Nf3 {[%emt 0:10:19]} e6 {[%emt 0:05:17]} 26. Bd4 {[%emt 0:00:10]} Bd6 {[%emt 0:00:39]} 27. Bxa7 {[%emt 0:00:51]} e5 {[%emt 0:01:06]} 28. Kg2 {[%emt 0:02:23]} (28. a4 $11) 28... Ke6 $1 $15 {[%emt 0:00:32][%mdl 1024] Black has compensation.} 29. Be3 {[%emt 0:01:06]} Rb7 {[%emt 0:00:42]} 30. Bc1 {[%emt 0:01:09]} d4 {[%emt 0:00:31]} ({Better is} 30... Rcb8 $1 $15 31. b3 Rc8 32. Bxh6 Rxc3 33. Ng5+ Nxg5 34. Bxg5 d4 35. Rf6+ Kd5) 31. Re1 $1 $132 {[%emt 0:02:47][%mdl 2048] White is not keeping still} Kd5 {[%emt 0:01:10]} 32. Rd1 {[%emt 0:00:22]} Ke6 {[%emt 0:00:18]} 33. cxd4 {[%emt 0:01:34]} (33. Re1 $11 {keeps the balance.} Kd5 34. Re2) 33... Rc2+ $17 {[%emt 0:00:01]} 34. Kg1 {[%emt 0:00:01] [#]} Rf7 $1 {[%emt 0:01:12] 0x0.000e62c4cfb3dp-1022s more active pieces. The white rooks are badly placed.} 35. d5+ $2 {[%emt 0:00:48][%mdl 8192] White does not recover from this.} ({Don't go for} 35. Nxe5 $2 Rff2 36. Rd3 (36. Bxh6 $2 {is a self mate.} Rg2+ 37. Kf1 Ng3+ 38. Ke1 Rg1#) 36... Rg2+ 37. Kh1 Bxe5 38. dxe5 Ng3+ 39. Rxg3 Rxg3 $19) (35. Rf1 $17) 35... Kd7 $19 {[%emt 0:00:23]} 36. Rd3 {[%emt 0:02:00]} Bc5+ {[%emt 0:00:18]} 37. Kf1 {[%emt 0:00:02]} Rf2+ {[%emt 0:00:42]} 38. Ke1 {[%emt 0:00:03]} R7xf3 {[%emt 0:00:15]} 39. Rxf3 {[%emt 0:00:04]} Rxf3 {[%emt 0:00:01]} 40. Bxh6 {[%emt 0:00:39]} (40. a4 $142) 40... Rxh3 {[%emt 0:00:09]} 41. Bc1 {[%emt 0:00:01]} Rh2 {[%emt 0:00:58]} 42. a4 {[%emt 0:00:31]} Bb4+ {[%emt 0:00:17]} 43. Kd1 {[%emt 0:00:19]} Rh1+ {[%emt 0:00:45]} 44. Kc2 {[%emt 0:00:21] [#]} Bd2 {[%emt 0:00:05][%mdl 512]} 45. a5 {[%emt 0:00:36]} (45. Kd3 Nc5+) 45... Rxc1+ {[%emt 0:00:33] Black mates.} 46. Rxc1 {[%emt 0:00:02]} Bxc1 {[%emt 0:00:02]} 47. Kxc1 {[%emt 0:00:27] KN-KP} Nc5 {[%emt 0:02:11]} 48. Kc2 {[%emt 0:01:11]} Kd6 {[%emt 0:00:10]} 49. b4 {[%emt 0:00:21]} Nd7 {[%emt 0:00:03]} 50. b5 {[%emt 0:02:59]} Kxd5 {[%emt 0:00:09] KN-K3P} 51. Kd3 {[%emt 0:00:26]} e4+ {[%emt 0:00:11][%cal Be5e4,Be4e3,Be3e2][%mdl 32]} 52. Kc3 {[%emt 0:00:43]} Kc5 {[%emt 0:00:31]} 53. a6 {[%emt 0:00:47]} g5 {[%emt 0:00:22]} 54. Kd2 {[%emt 0:00:35]} Kd4 {[%emt 0:00:10]} 55. Ke2 {[%emt 0:00:26]} e3 {[%emt 0:00:06]} 56. Ke1 {[%emt 0:00:18]} Kd3 {[%emt 0:00:05]} 57. Kd1 {[%emt 0:00:04]} e2+ {[%emt 0:00:04]} 58. Ke1 {[%emt 0:00:02]} Ke3 {[%emt 0:00:28]} 59. a7 {[%emt 0:00:09]} Ne5 {[%emt 0:00:03][%cal Re5d3]} 60. a8=Q {[%emt 0:02:33]} Nd3# {[%emt 0:00:03] Weighted Error Value: White=0.42/Black=0.19 (very precise)} 0-1

[Event "31st MPL National U18 Chess-ch 2022"]
[Site "Pollachi"]
[Date "2022.04.21"]
[Round "7.4"]
[White "Ilamparthi A R"]
[Black "Arul Anandh S P K"]
[Result "1-0"]
[ECO "A13"]
[WhiteElo "1969"]
[BlackElo "1759"]
[Annotator "TA"]
[PlyCount "99"]
[EventDate "2022.04.18"]
[EventCountry "IND"]
[SourceTitle "playchess.com"]
[Source "ChessBase"]
[SourceQuality "1"]
[TimeControl "5400+30"]

{[%evp 11,99,21,12,36,16,3,29,0,0,0,0,0,9,0,0,0,0,-32,25,34,22,37,31,25,39,30,52,38,71,17,35,38,41,23,109,108,143,143,316,304,315,296,303,297,308,302,404,406,394,391,399,381,465,466,445,458,539,502,604,489,568,443,475,475,442,432,609,541,714,708,683,681,900,909,989,799,1018,1001,1086,1071,1092,1082,1073,1067,1039,1024,1008,864,29988,29989]} 1. Nf3 {[%emt 0:00:02]} d5 {[%emt 0:01:02]} 2. e3 {[%emt 0:00:30]} Nf6 {[%emt 0:00:29]} 3. c4 {[%emt 0:00:26]} e6 {[%emt 0:00:39][%cal Be7e6,Be6d5,Bd5d4][%mdl 32]} 4. b3 {[%emt 0:00:22]} c5 {[%emt 0:02:48]} 5. Bb2 {[%emt 0:00:54]} Nc6 {[%emt 0:00:13]} 6. cxd5 {[%emt 0:00:23]} exd5 {[%emt 0:00:11]} 7. Nc3 {[%emt 0:03:39] A13: English Opening: 1...e6.} d4 {[%emt 0:13:37]} 8. Na4 {[%emt 0:00:07] [#]} Bg4 $146 {[%emt 0:04:37]} ({Predecessor:} 8... Be7 9. Rc1 dxe3 10. fxe3 Ne4 11. d3 Qa5+ 12. Ke2 Nf6 13. Qd2 Qxd2+ 14. Nxd2 b6 {0-1 (53) Mamedyarov,S (2770)-Wei,Y (2732) Chess.com INT 2020}) 9. Bb5 {[%emt 0:09:54] White has an edge.} Rc8 $1 {[%emt 0:04:26]} 10. h3 {[%emt 0:19:47]} Bh5 {[%emt 0:05:10]} 11. exd4 {[%emt 0:03:20]} cxd4 {[%emt 0:01:28]} 12. g4 {[%emt 0:00:53]} Bg6 {[%emt 0:01:33]} 13. Nxd4 {[%emt 0:02:09] Black must now prevent 0-0.} Be7 {[%emt 0:00:50]} 14. O-O {[%emt 0:01:10] f4 is the strong threat.} O-O {[%emt 0:00:20]} (14... h5 $1 $15) 15. Nxc6 $11 {[%emt 0:10:41]} bxc6 {[%emt 0:00:06]} 16. Bc4 {[%emt 0:00:08]} h5 {[%emt 0:10:59]} 17. Re1 $36 {[%emt 0:09:26][%mdl 2048] White has some pressure.} hxg4 {[%emt 0:01:57]} 18. hxg4 {[%emt 0:00:15]} Bd6 {[%emt 0:00:18]} 19. Qf3 {[%emt 0:02:15]} Nd5 {[%emt 0:03:25] [#]} 20. Be5 {[%emt 0:03:50]} ({Better is} 20. Nc3 $1 $16 {[%cal Rc3d5]}) 20... Re8 {[%emt 0:03:06]} 21. Bxd6 {[%emt 0:03:25]} Qxd6 {[%emt 0:00:06]} 22. Nc3 {[%emt 0:00:05][%cal Rc3d5]} (22. Bxd5 $5 cxd5 23. Nc3 $14) 22... Nf4 {[%emt 0:02:43]} (22... Nb4 $11 {keeps the balance.}) 23. Re3 $16 {[%emt 0:01:32]} Rxe3 {[%emt 0:08:48]} 24. dxe3 {[%emt 0:00:33]} Nd3 {[%emt 0:01:09] A mistake that costs the game.} (24... Ne6 $16) 25. Rd1 $18 {[%emt 0:01:35] Threatens to win with Bxd3.} Ne5 {[%emt 0:00:57]} 26. Rxd6 {[%emt 0:00:26]} Nxf3+ {[%emt 0:00:05]} 27. Kg2 {[%emt 0:00:10]} Ne5 {[%emt 0:00:20]} 28. Be2 {[%emt 0:00:50] Hoping for f4.} Bh7 {[%emt 0:08:56]} 29. f4 {[%emt 0:00:34]} Ng6 {[%emt 0:00:05]} 30. Rd7 {[%emt 0:00:18]} Re8 {[%emt 0:01:09]} 31. Kf2 {[%emt 0:00:30]} Re7 {[%emt 0:01:55]} 32. Rd8+ {[%emt 0:00:31]} Nf8 {[%emt 0:00:06]} 33. Rc8 {[%emt 0:00:06]} Re6 {[%emt 0:01:00]} 34. Bc4 {[%emt 0:00:26]} Rd6 {[%emt 0:00:16]} 35. Ke2 {[%emt 0:00:06] Inhibits Bd3+.} Bc2 {[%emt 0:04:06]} 36. Rc7 {[%emt 0:01:22]} Nd7 {[%emt 0:03:45]} 37. Rxa7 {[%emt 0:02:24]} Kf8 {[%emt 0:01:24]} 38. Rb7 {[%emt 0:00:43]} Ke7 {[%emt 0:01:50]} (38... Ke8 $142 39. a4 Nc5) 39. e4 {[%emt 0:01:32]} Rh6 {[%emt 0:00:29]} 40. Kd2 {[%emt 0:00:06]} Rh2+ {[%emt 0:01:46]} 41. Be2 {[%emt 0:00:10]} Ke6 {[%emt 0:00:32]} 42. Kxc2 {[%emt 0:00:08]} Nc5 {[%emt 0:00:03]} 43. Rb4 {[%emt 0:00:07]} g5 {[%emt 0:00:33]} 44. Rc4 {[%emt 0:00:17]} gxf4 {[%emt 0:00:24]} 45. Rxc5 {[%emt 0:00:04]} f3 {[%emt 0:00:06] [#]} 46. Kd3 $1 {[%emt 0:00:06]} fxe2 {[%emt 0:00:19]} 47. Nxe2 {[%emt 0:00:03]} Rh3+ {[%emt 0:00:21]} 48. Kd2 {[%emt 0:00:06] Rh5 would kill now.} Kd6 {[%emt 0:00:04]} 49. Rf5 {[%emt 0:00:05]} Ke6 {[%emt 0:00:24]} 50. Nf4+ {[%emt 0:00:04] Weighted Error Value: White=0.16 (very precise) /Black=0.38} 1-0

[Event "31st MPL National U18 Chess-ch 2022"]
[Site "Pollachi"]
[Date "2022.04.21"]
[Round "7.5"]
[White "John Veny Akkarakaran"]
[Black "Rakshith Srinivasan"]
[Result "1/2-1/2"]
[ECO "C06"]
[WhiteElo "1687"]
[BlackElo "1856"]
[Annotator "NA RC COMBH"]
[PlyCount "87"]
[EventDate "2022.04.18"]
[EventCountry "IND"]
[SourceTitle "playchess.com"]
[Source "ChessBase"]
[SourceQuality "1"]
[TimeControl "5400+30"]

{[%evp 30,86,25,32767,45,44,38,39,31,0,0,0,0,32767,-7,0,0,0,32767,0,39,25,31,0,0,0,0,0,0,0,0,0,0,32767,32767,32767,32767,32767,32767,-18,20,8,9,8,19,0,11,7,0,0,0,0,0,0,0,0,0,0,0]} 1. e4 {[%emt 0:00:03]} e6 {[%emt 0:00:03]} 2. d4 {[%emt 0:00:06]} d5 {[%emt 0:00:02]} 3. Nd2 {[%emt 0:00:06]} Nf6 {[%emt 0:00:03]} 4. e5 {[%emt 0:00:07]} Nfd7 {[%emt 0:00:02]} 5. Bd3 {[%emt 0:00:07]} c5 {[%emt 0:00:03]} 6. c3 {[%emt 0:00:06]} Nc6 {[%emt 0:00:02]} 7. Ne2 {[%emt 0:00:09]} cxd4 {[%emt 0:00:17]} 8. cxd4 {[%emt 0:00:05]} f6 {[%emt 0:00:02]} 9. exf6 {[%emt 0:00:06]} Nxf6 {[%emt 0:00:03]} 10. Nf3 {[%emt 0:00:08]} Bd6 {[%emt 0:00:04]} 11. O-O {[%emt 0:00:06]} Qc7 {[%emt 0:00:03]} 12. Nc3 {[%emt 0:01:01]} a6 {[%emt 0:00:21]} 13. Bg5 {[%emt 0:00:06]} O-O {[%emt 0:00:13]} 14. Bh4 {[%emt 0:00:49]} Bd7 {[%emt 0:04:10]} 15. Re1 {[%emt 0:03:50]} Rae8 {[%emt 0:03:25]} 16. Bg3 {[%emt 0:13:45]} Bxg3 {[%emt 0:09:50]} 17. hxg3 {[%emt 0:00:08]} e5 {[%emt 0:01:48]} 18. dxe5 {[%emt 0:05:41]} Nxe5 {[%emt 0:00:12]} 19. Nxe5 {[%emt 0:05:09]} (19. Bc2 $14 {was preferrable.}) 19... Rxe5 {[%emt 0:00:27]} 20. Be2 {[%emt 0:10:01]} Rfe8 {[%emt 0:09:21]} 21. Qd2 {[%emt 0:08:11]} Bc6 {[%emt 0:05:09]} 22. Rad1 {[%emt 0:05:44]} Qe7 {[%emt 0:18:32]} 23. Kf1 {[%emt 0:01:55]} Kf8 {[%emt 0:12:20]} 24. Bf3 {[%emt 0:03:07]} a5 {[%emt 0:02:59]} (24... Rxe1+ $11 25. Rxe1 Qxe1+ 26. Qxe1 Rxe1+ 27. Kxe1 Kf7) 25. Rxe5 {[%emt 0:05:19]} Qxe5 {[%emt 0:00:05]} 26. Ne2 {[%emt 0:08:06]} ({Not} 26. Nxd5 $2 Nxd5 27. Bxd5 Rd8 28. Qxa5 Rxd5 29. Rxd5 Bxd5 30. Qc5+ Kf7 $19) (26. Bxd5 $2 Rd8 27. Re1 Qc7 $19) 26... Bb5 {[%emt 0:02:30]} 27. Kg1 $1 {[%emt 0:00:54]} Bxe2 {[%emt 0:03:19]} 28. Re1 {[%emt 0:00:08]} Qd6 {[%emt 0:04:23]} 29. Rxe2 {[%emt 0:00:56]} Rxe2 {[%emt 0:00:11]} 30. Qxe2 {[%emt 0:00:50]} b6 {[%emt 0:00:29]} 31. g4 {[%emt 0:03:46]} Qe7 {[%emt 0:02:30]} 32. Qd2 {[%emt 0:06:23]} h6 {[%emt 0:01:31]} 33. g3 {[%emt 0:02:40]} Qe5 {[%emt 0:01:22]} 34. Qf4 {[%emt 0:01:25]} Qe6 {[%emt 0:07:14]} 35. g5 {[%emt 0:02:49]} hxg5 {[%emt 0:00:07]} 36. Qxg5 {[%emt 0:00:02]} Qd6 {[%emt 0:00:19]} 37. Qg6 {[%emt 0:00:54]} Qc5 {[%emt 0:05:35]} 38. g4 {[%emt 0:02:17]} Qd4 {[%emt 0:03:42]} 39. g5 {[%emt 0:03:36]} Ne4 {[%emt 0:00:17]} 40. Qf5+ {[%emt 0:00:51]} Ke7 {[%emt 0:00:07]} 41. Bg4 {[%emt 0:00:45]} Nc5 {[%emt 0:02:10]} 42. Bf3 {[%emt 0:01:59]} Ne4 {[%emt 0:02:44]} 43. Bg4 $11 {[%emt 0:00:08]} Nc5 {[%emt 0:01:53]} 44. Bh5 {[%emt 0:08:06]} 1/2-1/2